Cogmind - Beta 16 @@@ ROGUE MODE // 2025.12.28 @ 00:43:26 Player: PE-P51 Result: Destroyed by S-27 Virus with Autogun Performance ------------- Evolutions (5) 2500 Regions Visited (23) 4600 Robots Destroyed (304) 1520 Value Destroyed (8248) 8248 Prototype IDs (59) 1180 Alien Tech Used (1) 200 Bonus (4871) 4871 TOTAL SCORE: 23119 Bonus ------- High Alert Combat Kills 255 Follower Combat Kills 2316 Network Hubs Disabled 200 Met Warlord at Base 500 MAIN.C Attacked Warlord 500 Built Enhanced Grunts 300 A7 Reached Mainframe 300 Met R17 at Cetus 500 Cogmind --------- Core Integrity 0/1000 Matter 187/300 Energy 114/170 System Corruption 0% Temperature Cool (0) Movement Flying (20) Location -4/Proximity Caves Parts ------- > --- POWER (1) -------- Light Antimatter Reactor > --- PROPULSION (6) --- Cesium-ion Thruster Cooled VTOL Module Cooled VTOL Module Cooled Cesium-ion Thruster Cooled Impulse Thruster Cooled Impulse Thruster > --- UTILITY (9) ------ Improved Sensor Array Advanced Signal Interpreter Advanced Terrain Scanner Advanced Terrain Scan Processor Advanced Target Analyzer Experimental Core Analyzer Experimental Cloaking Device Makeshift Hacking Suite System Shield > --- WEAPON (2) ------- Smartbomb Launcher > --- INVENTORY (5) ---- Micro Antimatter Reactor Spectral Analyzer Vortex Lance (40) Peak State ------------ > --- POWER ------------ Light Antimatter Reactor > --- PROPULSION ------- Cesium-ion Thruster Cooled VTOL Module Cooled VTOL Module Cooled Cesium-ion Thruster Cooled Impulse Thruster Cooled Impulse Thruster > --- UTILITY ---------- Improved Sensor Array Advanced Signal Interpreter Advanced Terrain Scanner Advanced Terrain Scan Processor Advanced Target Analyzer Experimental Core Analyzer Experimental Cloaking Device Makeshift Hacking Suite System Shield > --- WEAPON ----------- Spear Vortex Lance > --- INVENTORY -------- Micro Antimatter Reactor Spectral Analyzer Smartbomb Launcher Improved Remote Datajack [Rating: 111] Favorites ----------- Power Heavy Ion Engine Engine Heavy Ion Engine Power Core Nuclear Core Reactor Light Antimatter Reactor Propulsion Light Treads Treads Light Treads Leg Aluminum Leg Wheel Armored Wheel Flight Unit Cooled VTOL Module Utility Makeshift Hacking Suite Device Cooling System Storage High-capacity Storage Unit Processor Advanced Signal Interpreter Hackware Makeshift Hacking Suite Protection Light Armor Plating Weapon Spear Energy Gun Precision Beam Rifle Energy Cannon Advanced Beam Cannon Ballistic Gun Light Assault Rifle Ballistic Cannon Heavy Assault Cannon Launcher Long-range Missile Launcher Special Weapon Improved Remote Datajack Impact Weapon Powered Hammer Slashing Weapon Chainsword Piercing Weapon Spear Special Melee Weapon Improved Datajack Build | -11 -10 -9 -9 -8 -7 -7 -7 -7 -7 -7 -6 -6 -6 -6 -6 -6 -5 -5 -5 -5 -5 -5 -4 ------- Run | Yrd Mat Mat Sto Mat Fac Was Fac Low Low Zio Pro Fac Ext Cet Arc Hub Fac Was Fac Upp Upp War Pro Slots Evolved 10 | . . 2 . 2 2 . . . . . . 2 . . . . 2 . . . . . . Power . | . . . . . . . . . . . . . . . . . . . . . . . . Propulsion 4 | . . 1 . 1 . . . . . . . . . . . . 2 . . . . . . Utility 6 | . . 1 . 1 2 . . . . . . 2 . . . . . . . . . . . Weapon . | . . . . . . . . . . . . . . . . . . . . . . . . Parts Attached 237 | . 11 32 14 41 24 . 11 4 3 . 1 9 3 3 4 4 14 3 33 5 2 16 . Power 27 | . 1 3 . 4 2 . 3 . . . . 3 3 . . 1 2 . 2 . . 3 . Engine 10 | . 1 1 . 3 1 . . . . . . 2 2 . . . . . . . . . . Core 12 | . . 2 . 1 1 . 3 . . . . 1 . . . 1 1 . 1 . . 1 . Reactor 5 | . . . . . . . . . . . . . 1 . . . 1 . 1 . . 2 . Propulsion 80 | . 2 12 9 19 5 . 6 . . . . . . . . 2 5 1 13 . . 6 . Treads 39 | . 2 12 9 16 . . . . . . . . . . . . . . . . . . . Leg 1 | . . . . 1 . . . . . . . . . . . . . . . . . . . Wheel 2 | . . . . 2 . . . . . . . . . . . . . . . . . . . Hover . | . . . . . . . . . . . . . . . . . . . . . . . . Flight 38 | . . . . . 5 . 6 . . . . . . . . 2 5 1 13 . . 6 . Utility 77 | . 4 5 3 10 10 . 1 4 2 . 1 6 . . 3 1 6 1 10 5 1 4 . Device 31 | . . 2 . 7 4 . . . . . . 3 . . . 1 4 1 5 2 1 1 . Storage 4 | . 2 . . 1 . . . . . . . . . . . . . . . . . 1 . Processor 19 | . 1 1 . . 3 . 1 1 1 . 1 1 . . . . 1 . 3 3 . 2 . Hackware 14 | . . . . . 3 . . 3 1 . . 1 . . 3 . 1 . 2 . . . . Protection 9 | . 1 2 3 2 . . . . . . . 1 . . . . . . . . . . . Artifact . | . . . . . . . . . . . . . . . . . . . . . . . . Weapon 53 | . 4 12 2 8 7 . 1 . 1 . . . . 3 1 . 1 1 8 . 1 3 . Energy Gun 14 | . . 2 . 3 2 . . . . . . . . 1 . . . 1 3 . 1 1 . Energy Cannon 11 | . 1 6 2 . . . 1 . . . . . . 1 . . . . . . . . . Ballistic Gun 12 | . 2 3 . 3 1 . . . . . . . . 1 . . . . 2 . . . . Ballistic Cannon 1 | . . . . 1 . . . . . . . . . . . . . . . . . . . Launcher 4 | . 1 . . 1 . . . . . . . . . . . . . . 2 . . . . Special Weapon 2 | . . 1 . . . . . . . . . . . . . . 1 . . . . . . Impact Weapon 2 | . . . . . 2 . . . . . . . . . . . . . . . . . . Slashing Weapon 1 | . . . . . . . . . . . . . . . . . . . 1 . . . . Piercing Weapon 4 | . . . . . 1 . . . 1 . . . . . . . . . . . . 2 . Special Melee Weapon 2 | . . . . . 1 . . . . . . . . . 1 . . . . . . . . Unidentified Prototypes 32 | . . 5 1 4 2 . 2 1 . . . . . 3 . 2 . . 6 . . 6 . Parts Lost 66 | . . 5 . 15 . . 2 . 2 . 1 . 1 1 . 7 9 . 17 1 5 . . Power 6 | . . . . 2 . . . . . . . . . . . 1 1 . 1 . 1 . . Propulsion 23 | . . 2 . 6 . . . . . . . . 1 . . 1 3 . 8 . 2 . . Utility 30 | . . 3 . 5 . . 2 . 1 . 1 . . 1 . 4 4 . 7 1 1 . . Weapon 7 | . . . . 2 . . . . 1 . . . . . . 1 1 . 1 . 1 . . Highest Loss Streak 11 | . . 3 . 5 . . 1 . 1 . 1 . 1 1 . 6 8 . 11 1 5 . . To Critical Strikes . | . . . . . . . . . . . . . . . . . . . . . . . . Average Backups 12 | . 13 19 19 23 5 5 4 5 5 5 5 4 4 5 5 5 4 5 4 4 4 4 3 Power 2 | . 1 4 4 3 1 1 1 1 1 1 1 . 1 1 1 1 1 . . . . . 1 Propulsion 2 | . 1 4 4 5 . . . 1 1 1 1 . . . . . . . . . . . . Utility 2 | . 1 2 4 6 1 2 1 1 1 1 1 1 1 1 1 1 . 1 . . 1 . 1 Weapon 4 | . 7 7 4 7 2 2 1 2 2 2 2 1 2 2 3 3 2 2 2 2 2 2 1 Tool/Special . | . . . . . . . . . . . . . . . . . . . . . . . . Unused Backups 45 | . 7 13 3 15 5 . . . . . . . . . . . . . . . . . 2 Power 8 | . 1 1 2 3 . . . . . . . . . . . . . . . . . . 1 Propulsion 12 | . 4 4 . 3 1 . . . . . . . . . . . . . . . . . . Utility 4 | . 1 2 . . . . . . . . . . . . . . . . . . . . 1 Weapon 19 | . 1 6 1 7 4 . . . . . . . . . . . . . . . . . . Tool/Special 2 | . . . . 2 . . . . . . . . . . . . . . . . . . . Average Slot Usage (%) 94 | . 99 98 99 90 96 100 99 97 94 100 99 92 85 75 86 94 76 82 91 94 96 89 99 Engine 5 | . 14 1 10 8 1 . . . . . . 5 5 6 6 5 . . . . . 1 . Core 2 | . . 9 . . 5 7 7 7 7 7 7 . . . . . . 5 1 . . . . Treads 15 | . 26 32 33 29 . . . . . . . . . . . . . . . . . . . Flight 12 | . . . . . 28 30 30 28 28 28 28 25 22 18 18 22 21 31 31 33 31 27 33 Device 12 | . . 10 10 20 17 15 14 7 7 7 6 17 16 12 12 9 6 13 12 16 15 15 16 Storage 5 | . 14 11 11 9 . . . . . . . . . . . . . . . . . . . Processor 6 | . 1 . 2 . 10 15 15 10 14 14 14 7 6 6 6 6 6 11 16 20 22 22 22 Hackware 8 | . . . . . 15 15 9 20 17 21 21 22 25 25 32 36 25 11 14 11 11 11 11 Protection 5 | . 11 10 8 5 . . 4 7 7 7 7 3 3 . . 1 . . . . . . . Energy Cannon 5 | . 4 13 21 2 . . 2 . . . . . . . . . . . . . . . . Ballistic Gun 3 | . 18 8 . . . . . . . . . . . . . . 2 . . . . . . Ballistic Cannon 1 | . . . . 6 . . . . . . . . . . . . . . . . . . . Piercing Weapon 2 | . . . . . . 7 6 7 9 14 14 9 5 6 6 5 4 5 4 1 4 5 4 Peak Build Rating 111 | . 10 22 25 35 45 44 58 62 63 63 63 75 73 64 74 84 100 74 96 93 93 111 109 Average Rating 42 | . 8 20 20 31 42 44 50 59 59 63 62 68 64 56 68 74 78 69 82 91 88 75 108 On Entrance 53 | 6 6 9 20 21 35 44 44 58 62 63 63 60 65 61 57 74 54 56 74 88 93 59 108 Avg Prop Armor Cover (%) 10 | . . . . 7 . . . . . . . . . . . . . . 8 . 11 12 . Naked Turns . | . . . . . . . . . . . . . . . . . . . . . . . . Heaviest Build 108 | 13 53 63 61 108 108 11 22 13 14 14 14 21 21 16 15 22 23 17 28 29 29 21 24 Greatest Support 82 | 20 40 63 60 82 82 21 24 21 21 21 21 21 21 16 16 23 38 26 36 36 36 44 35 Greatest Overweight (x) 8 | . 1 1 1 8 3 . 1 . . . . . 4 . . . 1 . . . 1 1 . Average Overweight (x) . | . . . . 1 . . . . . . . . . . . . . . . . . . . Largest Inventory Capacity 25 | . 20 20 20 25 25 5 5 5 5 5 5 5 5 5 5 5 5 5 5 5 5 5 5 Average Capacity 13 | . 16 20 20 24 6 5 5 5 5 5 5 5 5 5 5 5 5 5 5 5 5 5 5 Most Carried 25 | . 16 20 20 25 25 5 5 5 5 5 5 5 5 5 5 5 5 5 5 5 5 5 5 Average Carried 12 | . 13 19 19 23 5 5 4 5 5 5 5 4 4 5 5 5 4 4 4 4 4 4 4 Final Capacity 25 | 8 20 20 20 25 5 5 5 5 5 5 5 5 5 5 5 5 5 5 5 5 5 5 5 Final Carried 25 | 6 16 19 20 25 5 5 5 5 5 5 5 5 5 5 5 5 5 5 4 5 5 5 3 Class Distribution -------------------- 35% | Mutant 19% | Hacker-Scout 15% | Scavenger-Mutant 11% | Hacker-Sprinter 3% | Scout 3% | Hacker-Ninja Dominant Class ---------------- Mutant | -10/Materials Mutant | -9/Materials Mutant | -9/Storage Scavenger-Mutant | -8/Materials Hacker-Scout | -7/Factory Hacker-Scout | -7/Waste Scout | -7/Factory Hacker-Sprinter | -7/Lower Caves Hacker-Sprinter | -7/Lower Caves Hacker-Sprinter | -7/Zion Hacker-Sprinter | -6/Proximity Caves Hacker-Scout | -6/Factory Hacker-Scout | -6/Extension Commander-Scout | -6/Cetus Wizard-Scout | -6/Archives Wizard-Scout | -6/Hub_04(d) Hacker-Sprinter | -5/Factory Hacker-Sprinter | -5/Waste Hacker-Scout | -5/Factory Hacker-Scout | -5/Upper Caves Hacker-Scout | -5/Upper Caves Scavenger-Scout | -5/Warlord Scavenger-Ninja | -4/Proximity Caves Resources | -11 -10 -9 -9 -8 -7 -7 -7 -7 -7 -7 -6 -6 -6 -6 -6 -6 -5 -5 -5 -5 -5 -5 -4 ----------- Run | Yrd Mat Mat Sto Mat Fac Was Fac Low Low Zio Pro Fac Ext Cet Arc Hub Fac Was Fac Upp Upp War Pro Matter Collected 6504 | 200 326 776 202 1535 425 . 435 52 119 13 20 130 140 45 40 66 323 . 823 272 338 224 . Remotely . | . . . . . . . . . . . . . . . . . . . . . . . . Salvage Created 10898 | . 876 2080 976 2299 554 . 475 . 12 . 112 70 406 15 291 303 344 . 1233 446 383 . 23 Parts 566 | . 51 126 53 128 13 . 35 . . . 3 7 13 . 15 8 23 . 57 23 7 . 4 Haulers Intercepted 29 | . 1 6 6 6 1 . 2 . . . . . . . . 2 1 . 4 . . . . Recyclers Shooed 9 | . 2 1 1 2 . . . . . . . . . . . . 1 . 2 . . . . Parts Field Recycled . | . . . . . . . . . . . . . . . . . . . . . . . . Retrieved Matter . | . . . . . . . . . . . . . . . . . . . . . . . . Parts Self-Destructed 24 | . . . . . . . . . . . 6 . . . . . . . . 14 2 . 2 Prevented . | . . . . . . . . . . . . . . . . . . . . . . . . Parts Restored . | . . . . . . . . . . . . . . . . . . . . . . . . Kills | -11 -10 -9 -9 -8 -7 -7 -7 -7 -7 -7 -6 -6 -6 -6 -6 -6 -5 -5 -5 -5 -5 -5 -4 ------- Run | Yrd Mat Mat Sto Mat Fac Was Fac Low Low Zio Pro Fac Ext Cet Arc Hub Fac Was Fac Upp Upp War Pro Combat Hostiles Destroyed 172 | . 18 36 13 48 3 . 7 . . . 2 . 3 . . 1 10 . 10 18 . . 3 Melee 17 | . . . . . . . 7 . . . 2 . 3 . . . 1 . 4 . . . . Guns 36 | . 14 9 . 8 . . . . . . . . . . . . 2 . 1 2 . . . Cannons 72 | . 1 27 13 31 . . . . . . . . . . . . . . . . . . . AOE 46 | . 3 . . 8 3 . . . . . . . . . . 1 7 . 5 16 . . 3 Classes Destroyed 19 | . 9 4 . 3 . . 1 . . . . . 1 . . . . . 1 . . . . Worker 21 | . 2 3 1 5 2 . . . . . . 2 . . . 1 1 . 4 . . . . Builder 19 | . 3 3 1 4 4 . . . . . . . 1 . . . . . 3 . . . . Tunneler 6 | . . 3 . . . . . . . . . . 1 . . . 1 . 1 . . . . Hauler 29 | . 1 6 6 6 1 . 2 . . . . . . . . 2 1 . 4 . . . . Recycler 16 | . 1 1 . 6 2 . . . . . . . 2 . . . . . 4 . . . . Mechanic 2 | . 1 1 . . . . . . . . . . . . . . . . . . . . . Operator 18 | . 1 4 1 . 2 . 1 . . . . . . . 8 1 . . . . . . . Drone 1 | . . . . . . . . . . . . . . . . . . . 1 . . . . Watcher 22 | . 3 3 1 2 6 . 2 . . . . 1 . 1 . . 1 . 2 . . . . Swarmer 54 | . 3 7 1 10 3 . . . . . . . . . . . 8 . 8 11 . . 3 Grunt 68 | . 15 17 1 23 . . 2 . . . 2 . 1 . . 1 . . 1 5 . . . Brawler 3 | . . 1 . 1 . . . . . . . . . . . . . . . 1 . . . Duelist 4 | . . 2 . 2 . . . . . . . . . . . . . . . . . . . Protector 1 | . . . . 1 . . . . . . . . . . . . . . . . . . . Sentry 28 | . . 9 11 8 . . . . . . . . . . . . . . . . . . . Specialist 2 | . . . . 2 . . . . . . . . . . . . . . . . . . . Programmer 8 | . . . . . . . 5 . . . . . . . . . 2 . . 1 . . . Heavy 1 | . . . . 1 . . . . . . . . . . . . . . . . . . . Decomposer 3 | . . . . . . . . . 1 . . . . . . . . . . . 2 . . Savage 1 | . . . . . . . . . . . . . 1 . . . . . . . . . . Guerrilla 1 | . . . . . . . . . . . . . 1 . . . . . . . . . . Best Kill Streak 7 | . 3 5 4 7 3 . 3 . . . 2 1 4 1 4 3 7 . 5 6 . . 3 Combat Bots Only 6 | . 3 5 2 5 3 . 2 . . . 2 . 1 . . 1 5 . 4 6 . . 3 Max Kills in Single Turn 3 | . 3 2 1 3 1 . 1 . 1 . 1 1 2 1 1 3 2 . 2 2 1 . 2 Gunslinging . | . . . . . . . . . . . . . . . . . . . . . . . . Exploded 3 | . 3 . . 3 1 . . . . . . . . . . 1 2 . 1 2 . . 2 Melee 1 | . . . . . . . 1 . . . 1 . 1 . . . 1 . 1 . . . . Uniques/NPCs Destroyed . | . . . . . . . . . . . . . . . . . . . . . . . . Combat | -11 -10 -9 -9 -8 -7 -7 -7 -7 -7 -7 -6 -6 -6 -6 -6 -6 -5 -5 -5 -5 -5 -5 -4 -------- Run | Yrd Mat Mat Sto Mat Fac Was Fac Low Low Zio Pro Fac Ext Cet Arc Hub Fac Was Fac Upp Upp War Pro Hostile Shots Fired 1193 | . 82 185 35 259 25 . 81 . 22 . 27 13 31 1 . 127 123 . 96 23 41 13 9 Missed 477 | . 27 43 8 66 14 . 44 . 17 . 16 11 13 1 . 71 59 . 42 11 18 9 7 Hits 716 | . 55 142 27 193 11 . 37 . 5 . 11 2 18 . . 56 64 . 54 12 23 4 2 Melee 14 | . . 13 . 1 . . . . . . . . . . . . . . . . . . . Projectile 702 | . 55 129 27 192 11 . 37 . 5 . 11 2 18 . . 56 64 . 54 12 23 4 2 AOE 2 | . . . . . . . 1 . . . . . . . . . 1 . . . . . . Critical Strikes 33 | . 1 4 4 8 . . 3 . . . 2 . 2 . . 1 6 . . . 2 . . Damage Taken 12052 | . 669 2042 422 3211 173 . 662 89 83 . 186 32 459 25 . 833 1213 . 1240 206 424 54 29 Core 2532 | . 95 270 41 428 41 . 173 35 . . 55 12 104 . . 275 399 . 392 63 115 18 16 Absorbed by Shields 12 | . . . . . . . . . . . . . . . . . . . 12 . . . . Regen/Repaired (Parts) 1572 | . 118 63 124 48 105 . 68 54 24 . 39 88 178 . . 12 504 . 85 . . 62 . Core Remaining (%) 52 | 100 62 . 22 22 . . . . . . 56 . . . . 54 . . . . . . . Volleys Fired 678 | . 105 160 52 191 9 . 39 . . . . 8 5 . . 5 58 . 10 26 . 7 3 Largest 2 | . 2 2 2 2 1 . 1 . . . . 1 1 . . 1 1 . 1 1 . 1 1 Hottest 136 | . 88 136 136 136 33 . 65 . . . . 65 33 . . 35 35 . 65 80 . 7 46 Shots Fired 1053 | . 206 320 104 253 9 . 40 . . . . 8 5 . . 5 59 . 10 24 . 7 3 Gun 419 | . 195 82 . 76 4 . . . . . . . . . . 5 50 . 2 5 . . . Cannon 572 | . 10 238 104 172 . . 40 . . . . 8 . . . . . . . . . . . Launcher 54 | . 1 . . 5 5 . . . . . . . 5 . . . 8 . 8 19 . . 3 Special 8 | . . . . . . . . . . . . . . . . . 1 . . . . 7 . Kinetic 437 | . 147 82 . 149 4 . . . . . . . . . . 5 50 . . . . . . Thermal 554 | . 58 238 104 99 . . 40 . . . . 8 . . . . . . 2 5 . . . Explosive 54 | . 1 . . 5 5 . . . . . . . 5 . . . 8 . 8 19 . . 3 Electromagnetic . | . . . . . . . . . . . . . . . . . . . . . . . . Robot Hit Streak 14 | . 13 14 10 10 1 . 2 . . . . . . . . . 11 . 3 7 . 8 10 Robot Miss Streak 8 | . 8 3 4 3 4 . . . . . . . . . . . 5 . . 1 . . . Penetration Max 1 | . . . . 1 . . . . . . . . . . . . . . . . . . . Secondary Targets 3 | . . 1 . 2 . . . . . . . . . . . . . . . . . . . Max Gunslinging Chain 1 | . . 1 . 1 . . . . . . . . . . . . . . . . . . . Shots Hit Robots 719 | . 116 183 64 166 24 . 20 . 1 . 5 5 6 1 30 2 40 . 30 8 9 7 2 Core Hits 387 | . 58 67 24 84 7 . 9 . 1 . 2 2 12 . 9 8 25 . 31 37 8 . 3 Critical Kills 3 | . . 1 1 1 . . . . . . . . . . . . . . . . . . . Critical Parts Destroyed 3 | . . . . . 3 . . . . . . . . . . . . . . . . . . Critical Strikes 34 | . 4 1 1 15 3 . 3 . . . 1 1 . . . . 2 . 2 1 . . . Burn 4 | . 4 . . . . . . . . . . . . . . . . . . . . . . Meltdown 3 | . . 1 1 1 . . . . . . . . . . . . . . . . . . . Destroy 1 | . . . . . . . . . . . . . . . . . 1 . . . . . . Blast 14 | . . . . 14 . . . . . . . . . . . . . . . . . . . Smash 3 | . . . . . 3 . . . . . . . . . . . . . . . . . . Impale 9 | . . . . . . . 3 . . . 1 1 . . . . 1 . 2 1 . . . Melee Attacks 342 | . . . . . 54 . 44 1 7 2 17 29 21 1 34 11 36 . 66 3 12 1 3 Impact 45 | . . . . . 45 . . . . . . . . . . . . . . . . . . Slashing . | . . . . . . . . . . . . . . . . . . . . . . . . Piercing 291 | . . . . . 6 . 43 1 7 2 17 29 21 1 33 11 36 . 66 3 12 . 3 Entropic 1 | . . . . . . . . . . . . . . . . . . . . . . 1 . Sneak Attacks 54 | . . . . . 14 . 3 . 1 . . 3 4 . 10 2 3 . 12 . 2 . . Combat Hostiles 1 | . . . . . . . 1 . . . . . . . . . . . . . . . . Follow-up Attacks 1 | . . . . . . . . . . . 1 . . . . . . . . . . . . Damage Inflicted 27341 | . 1328 3796 1401 6742 1646 . 936 . 69 . 184 263 874 57 1357 676 2198 . 2245 2694 553 . 322 Guns 3651 | . 1046 707 . 960 . . . . . . . . . . . . 768 . 55 115 . . . Cannons 9616 | . 121 3038 1356 5075 . . 26 . . . . . . . . . . . . . . . . Explosions 6403 | . 109 . . 632 181 . . . . . . . 478 . . 552 841 . 872 2416 . . 322 Melee 7448 | . . . . . 1465 . 910 . 69 . 184 263 396 57 1357 124 589 . 1318 163 553 . . Ramming 223 | . 52 51 45 75 . . . . . . . . . . . . . . . . . . . Kinetic 6880 | . 634 707 . 4771 . . . . . . . . . . . . 768 . . . . . . Thermal 6581 | . 533 3038 1356 1458 . . 26 . . . . . . . . . . . 55 115 . . . Explosive 5577 | . 109 . . 358 181 . . . . . . . 478 . . . 841 . 872 2416 . . 322 Electromagnetic 632 | . . . . 80 . . . . . . . . . . . 552 . . . . . . . Impact 1403 | . . . . . 1403 . . . . . . . . . . . . . . . . . . Slashing . | . . . . . . . . . . . . . . . . . . . . . . . . Piercing 6045 | . . . . . 62 . 910 . 69 . 184 263 396 57 1357 124 589 . 1318 163 553 . . Highest Corruption 24 | . 1 . . . 1 11 13 13 13 13 . . . . . 4 8 13 24 24 24 24 . Average Corruption 9 | . 1 . . . 1 3 11 13 13 13 . . . . . 3 5 10 13 24 24 24 . Corruption Purged . | . . . . . . . . . . . . . . . . . . . . . . . . Corruption Blocked . | . . . . . . . . . . . . . . . . . . . . . . . . Effects 217 | . 13 . . . 4 . 65 8 23 . . . . . . . 15 4 47 23 15 . . Message Errors 56 | . 6 . . . 3 . 16 3 6 . . . . . . . 3 . 11 4 4 . . Matter Fused 53 | . 1 . . . 1 . 22 1 8 . . . . . . . 4 2 7 3 4 . . Heat Flow Errors 24 | . 1 . . . . . 3 . 2 . . . . . . . 4 . 9 3 2 . . Energy Discharges 16 | . 1 . . . . . 1 1 1 . . . . . . . . . 6 5 1 . . Parts Rejected 6 | . . . . . . . 1 . 1 . . . . . . . 1 . 3 . . . . Parts Fused 3 | . . . . . . . . . 2 . . . . . . . . . . 1 . . . Data Loss (minor) 17 | . 1 . . . . . 5 2 1 . . . . . . . . . 6 1 1 . . Data Loss (major) 9 | . . . . . . . 3 1 . . . . . . . . . . 1 2 2 . . Misfires 5 | . 1 . . . . . 3 . . . . . . . . . 1 . . . . . . Alerts 6 | . 1 . . . . . 1 . . . . . . . . . 2 . 1 1 . . . Misdirections 17 | . . . . . . . 8 . 2 . . . . . . . . 2 3 1 1 . . Weapon Failures 5 | . 1 . . . . . 2 . . . . . . . . . . . . 2 . . . Overload Shots . | . . . . . . . . . . . . . . . . . . . . . . . . Overflow Damage 2545 | . . 49 24 454 833 . 97 . . . . 80 58 27 282 126 91 . 341 48 18 . 17 Projectiles 399 | . . 49 24 325 . . 1 . . . . . . . . . . . . . . . . Explosions 423 | . . . . 129 15 . . . . . . . 33 . . 126 10 . 45 48 . . 17 Melee 1723 | . . . . . 818 . 96 . . . . 80 25 27 282 . 81 . 296 . 18 . . Knockbacks 29 | . 1 . . 23 5 . . . . . . . . . . . . . . . . . . Impact 6 | . 1 . . . 5 . . . . . . . . . . . . . . . . . . Kinetic 23 | . . . . 23 . . . . . . . . . . . . . . . . . . . Secondary . | . . . . . . . . . . . . . . . . . . . . . . . . Self-Inflicted Damage 233 | . . . . 50 30 . . . . . . . . . . 92 31 . . 30 . . . Shots 7 | . . . . 2 1 . . . . . . . . . . 1 2 . . 1 . . . Rammed 33 | . 8 7 9 9 . . . . . . . . . . . . . . . . . . . Targets Rammed 43 | . 11 10 9 13 . . . . . . . . . . . . . . . . . . . Kicked . | . . . . . . . . . . . . . . . . . . . . . . . . Crushed 10 | . 3 3 . 4 . . . . . . . . . . . . . . . . . . . Highest Temperature 633 | . 261 633 182 87 3 . 209 . 236 . 12 70 335 . . 6 264 18 226 167 213 5 . Average Temperature 63 | . 64 78 25 29 3 . 59 . 117 . 12 32 111 . . 5 80 9 71 61 112 2 . Received Heat Transfer 3477 | . 378 759 231 1332 9 . 72 . 9 . 54 15 399 . . 96 18 . 96 . . 9 . Effects 6 | . . 5 . . . . . . . . . . . . . . . . 1 . . . . Shutdowns 1 | . . 1 . . . . . . . . . . . . . . . . . . . . . Energy Bleed 1 | . . . . . . . . . . . . . . . . . . . 1 . . . . Interference 2 | . . 2 . . . . . . . . . . . . . . . . . . . . . Matter Decay 1 | . . 1 . . . . . . . . . . . . . . . . . . . . . Damage (minor) 1 | . . 1 . . . . . . . . . . . . . . . . . . . . . Siege Activations . | . . . . . . . . . . . . . . . . . . . . . . . . Martial Activations . | . . . . . . . . . . . . . . . . . . . . . . . . Shielding Activations . | . . . . . . . . . . . . . . . . . . . . . . . . Robots Disrupted . | . . . . . . . . . . . . . . . . . . . . . . . . Combat Hostiles . | . . . . . . . . . . . . . . . . . . . . . . . . Robots Corrupted 9 | . . . . . 9 . . . . . . . . . . . . . . . . . . Combat Hostiles . | . . . . . . . . . . . . . . . . . . . . . . . . Parts Fried 21 | . . . . . 19 . . . . . . . . . . 2 . . . . . . . Impact Corruptions 29 | . . . . . 29 . . . . . . . . . . . . . . . . . . Robots Melted 3 | . . 1 1 1 . . . . . . . . . . . . . . . . . . . Combat Hostiles 1 | . . . . 1 . . . . . . . . . . . . . . . . . . . Parts Melted 25 | . 5 9 8 3 . . . . . . . . . . . . . . . . . . . Heat Transferred 12471 | . 1739 5476 2442 2542 . . 37 . . . . . . . . . . . 87 148 . . . Parts Sabotaged . | . . . . . . . . . . . . . . . . . . . . . . . . Parts Stolen . | . . . . . . . . . . . . . . . . . . . . . . . . Parts Stripped . | . . . . . . . . . . . . . . . . . . . . . . . . Power Chain Reactions 2 | . . . . . . . 2 . . . . . . . . . . . . . . . . Alert | -11 -10 -9 -9 -8 -7 -7 -7 -7 -7 -7 -6 -6 -6 -6 -6 -6 -5 -5 -5 -5 -5 -5 -4 ------- Run | Yrd Mat Mat Sto Mat Fac Was Fac Low Low Zio Pro Fac Ext Cet Arc Hub Fac Was Fac Upp Upp War Pro Maximum Alert Level 3 | . . 2 2 3 2 . 1 . . . . . 1 1 . 2 1 . 1 . . . . Low Security (%) 63 | . 100 18 64 70 51 100 90 . . . . 100 69 43 100 5 68 100 37 . . . . Level 1 29 | . . 70 25 9 47 . 9 . . . . . 30 56 . 77 31 . 62 . . . . Level 2 6 | . . 11 9 15 . . . . . . . . . . . 16 . . . . . . . Level 3 . | . . . . 4 . . . . . . . . . . . . . . . . . . . Level 4 . | . . . . . . . . . . . . . . . . . . . . . . . . Level 5 . | . . . . . . . . . . . . . . . . . . . . . . . . High Security . | . . . . . . . . . . . . . . . . . . . . . . . . Max Security . | . . . . . . . . . . . . . . . . . . . . . . . . Peak Influence 797 | . 76 477 457 797 403 60 357 . . . . 121 380 276 173 647 315 102 335 . . . . Initial 361 | . . 26 196 25 361 60 35 . . . . . 20 192 70 46 305 102 64 . . . . Average 177 | . 18 285 186 215 223 59 87 . . . . 36 149 203 141 324 159 97 204 . . . . Influence Increases 11098 | . 553 1158 1059 1749 549 . 788 . 120 . 118 345 914 357 273 887 500 . 933 515 25 195 60 Destroy 0b10 Robot/C 4520 | . 360 720 480 940 60 . 140 . . . 60 40 460 160 80 220 200 . 180 360 . . 60 Destroy 0b10 Robot/NC 740 | . 60 120 60 120 85 . 25 . . . . 15 40 10 40 30 20 . 95 10 10 . . Destroy Leader 1016 | . 88 218 206 226 24 . 58 . . . 10 12 34 . . 34 34 . 32 40 . . . Allied During Kill 893 | . . . 156 . . . . . . . 18 8 295 166 120 130 . . . . . . . Trap Triggered on 0b10 30 | . . . . . . . . . . . . 20 . . . . . . 10 . . . . Successful Hack 491 | . 22 18 45 24 81 . 69 . . . . 20 33 8 . 33 18 . 120 . . . . Select Force Hacks 80 | . . . . 30 . . 50 . . . . . . . . . . . . . . . . Disable Machine 525 | . . 45 60 180 30 . 15 . . . . . . . 30 105 30 . 30 . . . . Anti-Garrison Action 150 | . . . . . . . . . . . . . . . . 150 . . . . . . . Destroy Structure 763 | . 8 7 7 139 59 . 26 . . . . 20 37 13 3 170 138 . 136 . . . . Partial Spotted 435 | . 15 . 15 15 90 . 105 . . . . 75 15 . . . . . 105 . . . . Lose Combat Pursuer 1455 | . . 30 30 75 120 . 300 . 120 . 30 135 . . . 15 60 . 225 105 15 195 . Influence Decreases 11038 | . 491 753 1466 1013 1172 123 485 251 222 . 118 303 612 524 317 397 830 201 743 313 283 341 80 Entered New Map 2466 | . . 36 271 35 435 113 15 131 21 . . . 22 152 107 87 318 191 28 105 93 226 80 Time Decay 6399 | . 491 676 695 723 577 10 392 120 170 . 98 237 420 262 110 100 422 10 433 198 140 115 . Search Patrol Dispatched 100 | . . . . . . . . . . . . . . . . . . . 100 . . . . Lost Part 576 | . . 41 . 105 . . 18 . 20 . . . 10 10 . 70 90 . 152 10 50 . . Lost Ally 897 | . . . 200 . 10 . 60 . 11 . 20 66 160 100 100 140 . . 30 . . . . Purge Threat 600 | . . . 300 150 150 . . . . . . . . . . . . . . . . . . Squads Dispatched 66 | . 4 6 7 7 6 . 14 . 1 . . 4 1 . . 7 3 . 6 . . . . Investigation 20 | . 3 1 1 3 1 . 7 . . . . 2 . . . . 1 . 1 . . . . Extermination 15 | . . . . . 4 . 4 . . . . 1 . . . 1 2 . 3 . . . . Reinforcement 22 | . 1 4 2 3 1 . 3 . . . . 1 1 . . 4 . . 2 . . . . Assault 5 | . . 1 . 1 . . . . 1 . . . . . . 2 . . . . . . . Garrison 4 | . . . 4 . . . . . . . . . . . . . . . . . . . . Intercept . | . . . . . . . . . . . . . . . . . . . . . . . . Searches Triggered 1 | . . . . . . . . . . . . . . . . . . . 1 . . . . Unchained Authorized 2 | . . . . . . . . . . . . 1 . . . . 1 . . . . . . Construction Impeded 3 | . . . . . . . . . . . . . 1 . . 1 . . 1 . . . . Haulers Reinforced 1 | . . . . . . . . . . . . . . . . . . . 1 . . . . Active Scanning Responses . | . . . . . . . . . . . . . . . . . . . . . . . . Cargo Convoy Interrupts . | . . . . . . . . . . . . . . . . . . . . . . . . Stealth | -11 -10 -9 -9 -8 -7 -7 -7 -7 -7 -7 -6 -6 -6 -6 -6 -6 -5 -5 -5 -5 -5 -5 -4 --------- Run | Yrd Mat Mat Sto Mat Fac Was Fac Low Low Zio Pro Fac Ext Cet Arc Hub Fac Was Fac Upp Upp War Pro Distress Signals 25 | . . 6 4 4 . . 1 . . . . 2 1 2 . 3 . . 2 . . . . Communications Jammed 6 | . . . . . . . . . . . . . 6 . . . . . . . . . . Distress Signals 6 | . . . . . . . . . . . . . 6 . . . . . . . . . . Times Spotted 477 | . 40 65 24 73 22 5 41 . 16 . 10 17 17 10 12 20 24 3 25 20 5 24 4 Peak Tracking Total 16 | . 3 5 5 7 4 5 6 . 7 . 4 7 5 5 2 16 8 3 10 12 5 16 4 Tactical Retreats 55 | . . 2 2 4 6 . 10 . 6 . 1 5 . . . 1 2 . 6 4 1 5 . Traps | -11 -10 -9 -9 -8 -7 -7 -7 -7 -7 -7 -6 -6 -6 -6 -6 -6 -5 -5 -5 -5 -5 -5 -4 ------- Run | Yrd Mat Mat Sto Mat Fac Was Fac Low Low Zio Pro Fac Ext Cet Arc Hub Fac Was Fac Upp Upp War Pro Traps Triggered 17 | . 4 3 1 . 2 . 2 1 . . . . . . . . 1 . 3 . . . . Indirectly . | . . . . . . . . . . . . . . . . . . . . . . . . Trap Hack Attempts . | . . . . . . . . . . . . . . . . . . . . . . . . Triggered . | . . . . . . . . . . . . . . . . . . . . . . . . Disarmed 13 | . . . 3 . 6 . . . . . . . 4 . . . . . . . . . . Reprogrammed 17 | . . . 6 . . . 1 . . . . 5 . . . 4 . . 1 . . . . Reused 3 | . . . . . . . . . . . . 2 . . . . . . 1 . . . . Traps Extracted . | . . . . . . . . . . . . . . . . . . . . . . . . Installed . | . . . . . . . . . . . . . . . . . . . . . . . . Triggered 3 | . . . . . . . . . . . . 2 . . . . . . 1 . . . . Machines | -11 -10 -9 -9 -8 -7 -7 -7 -7 -7 -7 -6 -6 -6 -6 -6 -6 -5 -5 -5 -5 -5 -5 -4 ---------- Run | Yrd Mat Mat Sto Mat Fac Was Fac Low Low Zio Pro Fac Ext Cet Arc Hub Fac Was Fac Upp Upp War Pro Machines Disabled 41 | . . 4 4 12 2 . 1 . . . . . 4 . 2 8 2 . 2 . . . . Max in Single Turn 6 | . . 1 1 3 1 . 1 . . . . . . . . 6 1 . 1 . . . . Garrison Access 7 | . . . . . 2 . . . . . . 1 . . . 1 1 . 2 . . . . Network Hub 1 | . . . . . . . . . . . . . . . . 1 . . . . . . . Machines Repaired . | . . . . . . . . . . . . . . . . . . . . . . . . Machines Dismantled . | . . . . . . . . . . . . . . . . . . . . . . . . Machines Sabotaged . | . . . . . . . . . . . . . . . . . . . . . . . . Overloaded Fab Kills 1 | . . . . . . . 1 . . . . . . . . . . . . . . . . Hacking | -11 -10 -9 -9 -8 -7 -7 -7 -7 -7 -7 -6 -6 -6 -6 -6 -6 -5 -5 -5 -5 -5 -5 -4 --------- Run | Yrd Mat Mat Sto Mat Fac Was Fac Low Low Zio Pro Fac Ext Cet Arc Hub Fac Was Fac Upp Upp War Pro Machines Accessed 148 | . 7 8 14 12 18 . 22 1 1 1 1 13 15 2 . 4 6 . 15 2 2 4 . Terminals 89 | . 5 6 10 8 11 . 11 . . . 1 6 15 2 . 4 1 . 8 . 1 . . Fabricators 9 | . . . . . . . 3 . . . . 3 . . . . 2 . 1 . . . . Repair Stations 17 | . 1 1 2 1 3 . 3 . . . . 2 . . . . 1 . 3 . . . . Recycling Units 4 | . 1 . 1 . . . 1 . . . . . . . . . 1 . . . . . . Scanalyzers 10 | . . 1 . 2 2 . 3 . . . . 1 . . . . . . 1 . . . . Garrison Access 9 | . . . 1 1 2 . 1 . . . . 1 . . . . 1 . 2 . . . . Total Hacks 511 | . 21 31 45 52 60 . 55 1 1 4 1 38 33 6 . 20 34 . 89 7 6 7 . Successful 303 | . 11 22 26 30 44 . 24 1 1 4 1 26 16 5 . 13 30 . 29 7 6 7 . Failed 206 | . 9 8 19 22 16 . 31 . . . . 12 17 1 . 7 4 . 60 . . . . Catastrophic 31 | . 1 . 4 6 5 . 3 . . . . 1 . . . . . . 11 . . . . Database Lockouts 2 | . 1 1 . . . . . . . . . . . . . . . . . . . . . Manual 155 | . 10 15 21 19 16 . 17 . . 1 . 15 3 1 . 12 3 . 19 . . 3 . Terminals 307 | . 12 17 34 33 31 . 28 . . . 1 19 33 6 . 20 7 . 61 . 5 . . Fabricators 23 | . . . . . . . 7 . . . . 7 . . . . 3 . 6 . . . . Repair Stations 75 | . 6 2 7 6 12 . 7 . . . . 6 . . . . 16 . 13 . . . . Recycling Units 12 | . 3 . 1 . . . 1 . . . . . . . . . 7 . . . . . . Scanalyzers 57 | . . 12 . 12 13 . 10 . . . . 4 . . . . . . 6 . . . . Garrison Access 16 | . . . 3 1 4 . 2 . . . . 2 . . . . 1 . 3 . . . . Terminal Hacks 146 | . 1 2 17 12 14 . 8 1 1 4 1 9 15 5 . 13 4 . 19 7 6 7 . Record 22 | . . . . . . . . . . . 1 . . 4 . . . . . 6 6 5 . Part Schematic 21 | . . 1 . 1 3 . 1 . . 4 . . 2 . . 1 3 . 5 . . . . Robot Schematic 1 | . . . . . . . . . . . . . . . . 1 . . . . . . . Robot Analysis 7 | . 1 . . 1 1 . . . . . . . . . . 2 1 . 1 . . . . Prototype ID Bank 2 | . . . . 2 . . . . . . . . . . . . . . . . . . . Open Door 18 | . . . 2 . . . . 1 1 . . 1 9 1 . . . . . 1 . 2 . Level Access Points 1 | . . . . . . . . . . . . . . . . 1 . . . . . . . Branch Access Points 4 | . . . . . 1 . 1 . . . . 1 . . . . . . 1 . . . . Machine Index 2 | . . . . . . . 1 . . . . . 1 . . . . . . . . . . Terminal Index 2 | . . . . . 1 . . . . . . 1 . . . . . . . . . . . Fabricator Index 1 | . . . . . 1 . . . . . . . . . . . . . . . . . . Repair Station Index 1 | . . . . . . . . . . . . . . . . . . . 1 . . . . Scanalyzer Index 2 | . . . . 1 . . . . . . . . . . . . . . 1 . . . . Alert Level 15 | . . 1 5 3 1 . 1 . . . . 1 1 . . . . . 2 . . . . Unreport Threat 4 | . . . 2 1 1 . . . . . . . . . . . . . . . . . . Locate Traps 6 | . . . 2 1 1 . . . . . . . . . . 1 . . 1 . . . . Disarm Traps 3 | . . . 1 . 1 . . . . . . . 1 . . . . . . . . . . Reprogram Traps 5 | . . . 1 . . . 1 . . . . 1 . . . 1 . . 1 . . . . Dispatch Records 7 | . . . 1 1 . . 1 . . . . . 1 . . 1 . . 2 . . . . Surveillance Status 1 | . . . . . . . . . . . . . . . . 1 . . . . . . . Reinforcement Status 1 | . . . . . . . . . . . . . . . . 1 . . . . . . . Recall Investigation 1 | . . . . . . . 1 . . . . . . . . . . . . . . . . Recall Extermination 2 | . . . . . 1 . . . . . . 1 . . . . . . . . . . . Recall Reinforcements 3 | . . . 1 . . . . . . . . . . . . 2 . . . . . . . Hauler Manifests 4 | . . . 1 1 . . 1 . . . . . . . . . . . 1 . . . . Registered Components 1 | . . . . . 1 . . . . . . . . . . . . . . . . . . Registered Prototypes 1 | . . . . . 1 . . . . . . . . . . . . . . . . . . Zone Layout 8 | . . . 1 . . . . . . . . 3 . . . 1 . . 3 . . . . Fabricator Hacks 9 | . . . . . . . 1 . . . . 3 . . . . 3 . 2 . . . . Network Status 3 | . . . . . . . 1 . . . . 1 . . . . 1 . . . . . . Load Schematic 2 | . . . . . . . . . . . . . . . . . 1 . 1 . . . . Build 4 | . . . . . . . . . . . . 2 . . . . 1 . 1 . . . . Repair Station Hacks 57 | . 6 2 5 6 11 . 4 . . . . 3 . . . . 16 . 4 . . . . Scan Component 30 | . 3 1 3 3 6 . 2 . . . . 2 . . . . 8 . 2 . . . . Repair 27 | . 3 1 2 3 5 . 2 . . . . 1 . . . . 8 . 2 . . . . Recycling Unit Hacks 7 | . 1 . 1 . . . 1 . . . . . . . . . 4 . . . . . . Retrieve Components 7 | . 1 . 1 . . . 1 . . . . . . . . . 4 . . . . . . Scanalyzer 44 | . . 12 . 9 13 . 6 . . . . 2 . . . . . . 2 . . . . Insert Component 18 | . . 6 . 5 4 . 2 . . . . . . . . . . . 1 . . . . Analyze 17 | . . 6 . 4 4 . 2 . . . . . . . . . . . 1 . . . . Retrieve Study 9 | . . . . . 5 . 2 . . . . 2 . . . . . . . . . . . Garrison Access Hacks 6 | . . . . . 2 . . . . . . 1 . . . . 1 . 2 . . . . Seal Access 6 | . . . . . 2 . . . . . . 1 . . . . 1 . 2 . . . . Unauthorized Hacks 34 | . 3 6 3 3 4 . 4 . . . . 8 1 . . . 2 . . . . . . Terminals 25 | . 3 6 3 2 4 . 2 . . . . 4 1 . . . . . . . . . . Assimilate 4 | . . . . . 1 . 1 . . . . 1 1 . . . . . . . . . . Botnet 12 | . 1 4 2 2 2 . . . . . . 1 . . . . . . . . . . . Operators 6 | . 2 2 1 . . . . . . . . 1 . . . . . . . . . . . Skim 3 | . . . . . 1 . 1 . . . . 1 . . . . . . . . . . . Fabricators 5 | . . . . . . . 2 . . . . 3 . . . . . . . . . . . Prioritize 1 | . . . . . . . . . . . . 1 . . . . . . . . . . . Liberate 3 | . . . . . . . 1 . . . . 2 . . . . . . . . . . . Overload 1 | . . . . . . . 1 . . . . . . . . . . . . . . . . Repair Stations 1 | . . . . . . . . . . . . 1 . . . . . . . . . . . Patch 1 | . . . . . . . . . . . . 1 . . . . . . . . . . . Recycling Units 2 | . . . . . . . . . . . . . . . . . 2 . . . . . . Recyclers 1 | . . . . . . . . . . . . . . . . . 1 . . . . . . Mask 1 | . . . . . . . . . . . . . . . . . 1 . . . . . . Scanalyzers 1 | . . . . 1 . . . . . . . . . . . . . . . . . . . Extract 1 | . . . . 1 . . . . . . . . . . . . . . . . . . . Garrison Access . | . . . . . . . . . . . . . . . . . . . . . . . . Data Cores Recovered 2 | . . . 1 . 1 . . . . . . . . . . . . . . . . . . Used . | . . . . . . . . . . . . . . . . . . . . . . . . Hacking Detections 105 | . 5 6 10 12 15 . 22 . . . . 8 9 1 . 3 2 . 12 . . . . Full Trace Events 15 | . 2 . 2 2 1 . 5 . . . . 1 . . . . 1 . 1 . . . . Feedback Events 1 | . 1 . . . . . . . . . . . . . . . . . . . . . . Corruption 1 | . 1 . . . . . . . . . . . . . . . . . . . . . . Feedback Blocked . | . . . . . . . . . . . . . . . . . . . . . . . . Robot Schematics Acquired 4 | . . . . . . . . . . 3 . . . . . 1 . . . . . . . Robots Built 6 | . . . . . . . . . . . . 4 . . . . . . 2 . . . . Authchips . | . . . . . . . . . . . . . . . . . . . . . . . . Time 330 | . . . . . . . . . . . . 196 . . . . 67 . 67 . . . . Total Robot Build Rating 26 | . . . . . . . . . . . . 18 . . . . . . 8 . . . . Part Schematics Acquired 53 | . . 7 . 7 7 . 2 . . 18 . . 2 . . 1 3 . 6 . . . . Parts Built . | . . . . . . . . . . . . . . . . . . . . . . . . Authchips . | . . . . . . . . . . . . . . . . . . . . . . . . Time . | . . . . . . . . . . . . . . . . . . . . . . . . Total Part Build Rating . | . . . . . . . . . . . . . . . . . . . . . . . . Part Studies Acquired 9 | . . . . . 5 . 2 . . . . 2 . . . . . . . . . . . Parts Repaired 27 | . 3 1 2 3 5 . 2 . . . . 1 . . . . 8 . 2 . . . . Time 1322 | . 78 38 80 137 236 . 108 . . . . 35 . . . . 519 . 91 . . . . Parts Recycled . | . . . . . . . . . . . . . . . . . . . . . . . . Recycled Matter . | . . . . . . . . . . . . . . . . . . . . . . . . Retrieved Matter . | . . . . . . . . . . . . . . . . . . . . . . . . Retrieved Components 23 | . 9 . 2 . . . 10 . . . . . . . . . 2 . . . . . . Parts Scanalyzed 17 | . . 6 . 4 4 . 2 . . . . . . . . . . . 1 . . . . Part Schematics Acquired 16 | . . 6 . 4 4 . 1 . . . . . . . . . . . 1 . . . . Parts Damaged 2 | . . . . 2 . . . . . . . . . . . . . . . . . . . Bothacking | -11 -10 -9 -9 -8 -7 -7 -7 -7 -7 -7 -6 -6 -6 -6 -6 -6 -5 -5 -5 -5 -5 -5 -4 ------------ Run | Yrd Mat Mat Sto Mat Fac Was Fac Low Low Zio Pro Fac Ext Cet Arc Hub Fac Was Fac Upp Upp War Pro Used RIF Installer . | . . . . . . . . . . . . . . . . . . . . . . . . Robots Hacked 10 | . . . . . 2 . . . . . . . . . 1 . 1 . . . . 6 . Non-combat 4 | . . . . . 2 . . . . . . . . . 1 . 1 . . . . . . Combat 6 | . . . . . . . . . . . . . . . . . . . . . . 6 . Robot Hacks Applied 11 | . . . . . 3 . . . . . . . . . 1 . 1 . . . . 6 . parse_system 7 | . . . . . . . . . . . . . . . . . 1 . . . . 6 . find_chute 3 | . . . . . 3 . . . . . . . . . . . . . . . . . . check_alert 1 | . . . . . . . . . . . . . . . 1 . . . . . . . . Relay Couplers Released 6 | . . . . . . . 4 . . . . . . . . 2 . . . . . . . Machine Destruction 2 | . . . . . . . . . . . . . . . . 2 . . . . . . . Programmers 4 | . . . . . . . 4 . . . . . . . . . . . . . . . . Fabnet Peak Effective % . | . . . . . . . . . . . . . . . . . . . . . . . . Robots Rewired 14 | . . . . . . . . . 2 . . . 12 . . . . . . . . . . Allies Hacked 1 | . . . . . . . . . . . . 1 . . . . . . . . . . . Hacks Repelled . | . . . . . . . . . . . . . . . . . . . . . . . . Allies | -11 -10 -9 -9 -8 -7 -7 -7 -7 -7 -7 -6 -6 -6 -6 -6 -6 -5 -5 -5 -5 -5 -5 -4 -------- Run | Yrd Mat Mat Sto Mat Fac Was Fac Low Low Zio Pro Fac Ext Cet Arc Hub Fac Was Fac Upp Upp War Pro Total Allies 59 | . . . 10 . 1 . 4 . 2 4 . 5 26 5 . . . . 2 . . . . Largest Group 20 | . . . 10 . 1 . 4 . 2 4 4 3 18 20 18 12 . . 2 . . . . Highest-Rated Group 1002 | . . . 88 . 26 . 74 . 40 95 95 64 642 1002 875 601 . . 80 . . . . Highest-Rated Ally 159 | . . . 16 . 26 . 26 . 20 31 31 32 159 159 143 96 . . 40 . . . . Total Orders 6 | . . . . . . . 1 . . . . . . 2 2 . . . 1 . . . . STAY 3 | . . . . . . . 1 . . . . . . 1 1 . . . . . . . . FOLLOW 2 | . . . . . . . . . . . . . . 1 1 . . . . . . . . EXPLORE 1 | . . . . . . . . . . . . . . . . . . . 1 . . . . Ally Attacks 477 | . . . 89 . . . 2 . 4 . 24 8 174 87 49 37 . . 3 . . . . Total Damage 9973 | . . . 790 . . . 16 . 236 . 300 233 3012 2403 1274 1594 . . 115 . . . . Kills 70 | . . . 13 . . . . . 3 . 1 2 24 9 4 13 . . 1 . . . . Allies Corrupted 3 | . . . . . . . . . . . . . . . . 3 . . . . . . . Allies Melted . | . . . . . . . . . . . . . . . . . . . . . . . . Intel | -11 -10 -9 -9 -8 -7 -7 -7 -7 -7 -7 -6 -6 -6 -6 -6 -6 -5 -5 -5 -5 -5 -5 -4 ------- Run | Yrd Mat Mat Sto Mat Fac Was Fac Low Low Zio Pro Fac Ext Cet Arc Hub Fac Was Fac Upp Upp War Pro Active Infowar (turns) 12466 | . . . . 888 1676 21 1507 240 619 476 343 689 1093 561 239 177 1017 32 1030 403 286 1076 93 Sensors 11227 | . . . . . 1659 21 1495 240 619 476 343 544 1093 561 239 134 998 32 916 402 286 1076 93 Terrain 5327 | . . . . 241 1372 21 1325 . . . . . . . . . 319 32 661 403 220 640 93 Traps 3936 | . . . . 647 . . . . . . . 688 1093 561 239 177 . . . 312 219 . . Machine Analysis 361 | . . . . . . . . . . . . . . . . . . . 361 . . . . Cloaking 3 | . . . . . . . . . . . . . . . . . . . . . . 3 . Jamming 174 | . . . . . 73 . 29 . . . . 1 8 . . . 2 . 61 . . . . Robot Analysis Total 7 | . 1 . . 1 1 . . . . . . . . . . 2 1 . 1 . . . . Derelict Logs Recovered 9 | . . . . . . . . 2 1 1 1 . . . . . . . . 2 1 . 1 Drone Launches 1 | . . . . . . . . . . . . . . . . . . . 1 . . . . Drone Recoveries . | . . . . . . . . . . . . . . . . . . . . . . . . Exploration | -11 -10 -9 -9 -8 -7 -7 -7 -7 -7 -7 -6 -6 -6 -6 -6 -6 -5 -5 -5 -5 -5 -5 -4 ------------- Run | Yrd Mat Mat Sto Mat Fac Was Fac Low Low Zio Pro Fac Ext Cet Arc Hub Fac Was Fac Upp Upp War Pro Turns Passed 24623 | . 2444 3159 2896 4299 1762 21 1507 240 619 476 361 717 1093 561 239 201 1034 32 1104 403 286 1076 93 Spaces Moved 26142 | 1 941 1508 1189 1494 3448 66 2545 873 1290 1332 881 1434 1401 508 339 439 722 101 2061 1222 591 1554 202 Core 19 | . . . . . . . . . . . . . 3 . . . . . 16 . . . . Treads 4926 | . 902 1508 1189 1312 15 . . . . . . . . . . . . . . . . . . Legs 40 | 1 39 . . . . . . . . . . . . . . . . . . . . . . Wheels 182 | . . . . 182 . . . . . . . . . . . . . . . . . . . Hover . | . . . . . . . . . . . . . . . . . . . . . . . . Flight 20975 | . . . . . 3433 66 2545 873 1290 1332 881 1434 1398 508 339 439 722 101 2045 1222 591 1554 202 Fastest Speed 20 | 120 120 160 160 120 31 31 26 26 26 26 26 26 26 29 29 20 20 20 20 24 24 20 20 Average Speed 62 | 120 193 167 219 229 32 31 28 26 26 26 26 26 27 29 29 26 27 20 24 24 30 39 20 Slowest Speed 480 | 120 240 240 240 480 241 31 100 26 29 26 26 26 250 29 29 29 99 23 50 24 105 105 20 Overloaded Moves 4 | . . . . . . . . . . . . . . . . 4 . . . . . . . Propulsion Burnouts . | . . . . . . . . . . . . . . . . . . . . . . . . Robots Hopped 163 | . . . . . 11 . 34 12 1 . 1 12 42 . . 13 12 . 21 . 2 2 . Potential Cave-ins . | . . . . . . . . . . . . . . . . . . . . . . . . Cave-ins Triggered 1 | . . . . . . . . . . . . . . . . . . . 1 . . . . Exploration Rate (%) 68 | 2 89 95 99 92 60 77 58 81 87 81 75 39 83 86 82 44 14 64 48 95 68 95 28 Regions Visited 23 Branch Regions 13 Pre-discovered Areas 5 | . . . . . . . . 1 1 1 1 . . . . . . . . 1 . . . Known Exits Taken 15 | . . 1 . . . . 1 1 1 1 1 1 1 1 1 1 . . 1 1 1 1 . Unknown Exits Taken 4 | 1 1 . 1 1 . . . . . . . . . . . . . . . . . . . Scrap Searched 15 | . . . . . . . . 2 3 1 4 . . . . . . . . 2 3 . . Spaces Dug 177 | . . . . 35 27 . 20 1 5 . 7 19 9 . 1 7 17 . 22 . 3 1 3 Terrain Destroyed 1006 | . 6 . . 146 85 . 28 1 5 . 7 20 48 . 1 217 90 . 66 245 3 1 37 Melee 131 | . . . . . 27 . 14 1 5 . 7 17 9 . 1 6 15 . 22 . 3 1 3 Projectile 75 | . . . . 35 . . 14 . . . . 3 . . . 3 20 . . . . . . AOE 800 | . 6 . . 111 58 . . . . . . . 39 . . 208 55 . 44 245 . . 34 Terrain Rammed . | . . . . . . . . . . . . . . . . . . . . . . . . Walls Destroyed . | . . . . . . . . . . . . . . . . . . . . . . . . Machines Disabled . | . . . . . . . . . . . . . . . . . . . . . . . . Actions | -11 -10 -9 -9 -8 -7 -7 -7 -7 -7 -7 -6 -6 -6 -6 -6 -6 -5 -5 -5 -5 -5 -5 -4 --------- Run | Yrd Mat Mat Sto Mat Fac Was Fac Low Low Zio Pro Fac Ext Cet Arc Hub Fac Was Fac Upp Upp War Pro Total 32607 | . 1370 1825 1376 2057 3988 65 3187 868 1560 1459 989 1715 2030 920 428 483 1424 110 2521 1297 677 2010 248 Wait 4773 | . 277 40 72 227 404 . 542 1 247 127 96 235 583 404 51 35 580 6 314 17 66 412 37 Move 25822 | . 940 1507 1188 1493 3427 65 2478 848 1287 1331 878 1411 1329 507 338 414 701 100 2021 1221 586 1550 202 Hop 136 | . . . . . 10 . 32 12 1 . 1 10 29 . . 11 9 . 18 . 2 1 . Pick Up 122 | . 13 24 11 33 6 . 4 . . . . 3 1 . . . 6 1 5 8 2 5 . Fast Attach 105 | . 8 3 2 15 5 . 4 2 3 . . 4 . 3 4 2 16 2 25 3 . 4 . Attach 63 | . . 6 . 8 15 . 2 . . . . 3 5 . . . 4 1 5 6 3 4 1 Detach 20 | . . . . 3 2 . 1 . . . . 4 4 2 . . 2 . 1 . . 1 . Swap 220 | . 10 43 18 34 18 . 20 4 1 . 2 7 5 . . 5 10 . 19 5 4 15 . Drop 184 | . 6 32 23 40 25 . 10 . . . . 4 3 3 1 . 2 . 13 8 2 10 2 Fire 678 | . 105 160 52 191 9 . 39 . . . . 8 5 . . 5 58 . 10 26 . 7 3 Melee 332 | . . . . . 54 . 44 1 6 1 12 26 21 1 34 11 36 . 66 3 12 1 3 Ram . | . . . . . . . . . . . . . . . . . . . . . . . . Kick . | . . . . . . . . . . . . . . . . . . . . . . . . Crush 43 | . 11 10 9 13 . . . . . . . . . . . . . . . . . . . Escape Stasis 48 | . . . . . 13 . 11 . . . . . . . . . . . 24 . . . . Rewire 61 | . . . 1 . . . . . 15 . . . 45 . . . . . . . . . . Trap . | . . . . . . . . . . . . . . . . . . . . . . . . Miscellaneous . | . . . . . . . . . . . . . . . . . . . . . . . . Route ------- -11/Scrapyard -10/Materials (discovered 5 exits: *Mat x2 / [*Min x2] / [*Sub]) -9/Materials (discovered 5 exits: *Mat x2 / [*Min] / *Sto x2) -9/Storage (discovered 2 exits: *Mat / [*Rec]) -8/Materials (discovered 3 exits: *Fac x3) -7/Factory (discovered 3 exits: Fac / *Low x2) -7/Waste -7/Factory (discovered 3 exits: *Fac / *Low x2) -7/Lower Caves (discovered 2 exits: *Low / *Zio) -7/Lower Caves (discovered 2 exits: *Fac / *Zio) -7/Zion -6/Proximity Caves -6/Factory (discovered 6 exits: *Fac x2 / Low x2 / *Ext x2) -6/Extension (discovered 2 exits: *Fac / *Cet) -6/Cetus (discovered 2 exits: *Fac / *Arc) -6/Archives (discovered 3 exits: *Fac / *Hub x2) -6/Hub_04(d) (discovered 4 exits: *Fac x4) -5/Factory -5/Waste -5/Factory (discovered 3 exits: *Fac / *Upp x2) -5/Upper Caves -5/Upper Caves (discovered 2 exits: Fac / *War) -5/Warlord -4/Proximity Caves History --------- Turn | Location | Event 1 | -11/Scrapyard | Discovered new exit (range 0) 1 | -11/Scrapyard | Entered Materials 312 | -10/Materials | Build established: Mutant 355 | -10/Materials | Discovered new exit (range 8) 818 | -10/Materials | Discovered new exit (range 16) 1012 | -10/Materials | Discovered new exit (range 11) 2194 | -10/Materials | Repaired Lgt. Assault Rifle 2221 | -10/Materials | Repaired Lgt. Armor Plating 2249 | -10/Materials | Repaired Lgt. Assault Rifle 2260 | -10/Materials | Discovered new exit (range 7) 2360 | -10/Materials | Central database locked down 2421 | -10/Materials | Discovered new exit (range 8) 2445 | -10/Materials | Entered another Materials area 2445 | -9/Materials | Evolved 2 slots: Propulsion x1, Utility x1 2957 | -9/Materials | Repaired Nuclear Core 3062 | -9/Materials | Discovered new exit (range 13) 3157 | -9/Materials | Build established: Scavenger-Mutant 3209 | -9/Materials | Discovered new exit (range 16) 3406 | -9/Materials | Discovered new exit (range 14) 3542 | -9/Materials | Build established: Mutant 4225 | -9/Materials | Central database locked down 4466 | -9/Materials | Discovered new exit (range 8) 5245 | -9/Materials | First assault squad dispatched 5367 | -9/Materials | Core integrity fell below 50% 5400 | -9/Materials | Lost 3 parts (1n2u) 5448 | -9/Materials | Discovered new exit (range 8) 5604 | -9/Materials | Identified exit to Storage 5604 | -9/Materials | Entered Storage 5880 | -9/Storage | Assisted by bots powering up and referring to "LRC-V3" 6057 | -9/Storage | Garrison activated, responded to threat 6102 | -9/Storage | Lost 3 allies 6117 | -9/Storage | Found Prototype Protection 6117 | -9/Storage | Identified Lgt. Regenerative Plating 6213 | -9/Storage | Build established: Commander-Mutant 6263 | -9/Storage | Lost 3 allies 6456 | -9/Storage | Used back door to open Recycling access 6456 | -9/Storage | Discovered new exit (range 4) 6525 | -9/Storage | Build established: Mutant 6674 | -9/Storage | Garrison activated, responded to threat 7053 | -9/Storage | Discovered new exit (range 8) 7302 | -9/Storage | Repaired Cooling System 7918 | -9/Storage | Repaired Broken Hvy. Ion Engine 8500 | -9/Storage | Entered Materials 8500 | -8/Materials | Evolved 2 slots: Propulsion x1, Utility x1 8725 | -8/Materials | Lost 4 parts (2n1u1w) 9598 | -8/Materials | Lost 5 parts (1p1n2u1w) 9602 | -8/Materials | Core integrity fell below 50% 9917 | -8/Materials | Discovered new exit (range 10) 9973 | -8/Materials | Build established: Scavenger-Mutant 10652 | -8/Materials | Discovered new exit (range 7) 11141 | -8/Materials | Repaired Broken Transmission Jammer 11180 | -8/Materials | Repaired Hacking Suite 11261 | -8/Materials | Repaired Hvy. Assault Cannon 11443 | -8/Materials | Discovered new exit (range 5) 12500 | -8/Materials | First assault squad dispatched 12799 | -8/Materials | Entered Factory 12799 | -7/Factory | Evolved 2 slots: Utility x2 13017 | -7/Factory | Discovered new exit (range 15) 13372 | -7/Factory | Repaired Imp. Flight Unit 13425 | -7/Factory | Repaired Imp. Flight Unit 13458 | -7/Factory | Repaired Rocket Launcher+ 13465 | -7/Factory | Build established: Hacker-Ninja 13840 | -7/Factory | Identified exit to Lower Caves 14048 | -7/Factory | Build established: Hacker-Scout 14338 | -7/Factory | Repaired Imp. Flight Unit 14390 | -7/Factory | Repaired Imp. Flight Unit 14425 | -7/Factory | Discovered new exit (range 11) 14561 | -7/Factory | Manually triggered Chute Trap 14561 | -7/Factory | Sucked down chute 14561 | -7/Factory | Entered Waste 14567 | -7/Waste | Spotted C-40 Crusher 14568 | -7/Waste | Spotted C-40 Crusher 14571 | -7/Waste | Spotted C-40 Crusher 14572 | -7/Waste | Spotted C-40 Crusher 14575 | -7/Waste | Spotted C-40 Crusher 14576 | -7/Waste | EMP discharged 14576 | -7/Waste | System corruption reached 10% 14577 | -7/Waste | Discovered new exit (range 13) 14577 | -7/Waste | Spotted C-40 Crusher 14581 | -7/Waste | Identified exit to Factory 14582 | -7/Waste | Entered Factory 15344 | -7/Factory | Build established: Scout 15386 | -7/Factory | Discovered new exit (range 5) 15392 | -7/Factory | Identified exit to Factory 15642 | -7/Factory | Repaired Imp. Terrain Scanner 15714 | -7/Factory | Repaired Cld. VTOL Module 16089 | -7/Factory | Entered Lower Caves 16152 | -7/Lower Caves | Learned location of Extension (-6) 16171 | -7/Lower Caves | Found Alien Artifact 16171 | -7/Lower Caves | Identified Core Expander 16171 | -7/Lower Caves | Installed Core Expander, added new Utility slot 16174 | -7/Lower Caves | Identified exit to Lower Caves 16178 | -7/Lower Caves | Encountered a Warlord checkpoint 16282 | -7/Lower Caves | A Derelict revealed a hidden shortcut to a safe place 16284 | -7/Lower Caves | Identified exit to Zion 16329 | -7/Lower Caves | Entered another Lower Caves area 16333 | -7/Lower Caves | Discovered exit to Factory (range 13) 16391 | -7/Lower Caves | Attracted the attention of an 0b10 outpost 16410 | -7/Lower Caves | Build established: Hacker-Sprinter 16512 | -7/Lower Caves | Encountered a Warlord checkpoint 16646 | -7/Lower Caves | Attacked by a faux Warlord 16663 | -7/Lower Caves | Lost 3 allies 16684 | -7/Lower Caves | Discovered exit to Zion (range 10) 16685 | -7/Lower Caves | Learned location of Zion (-7) 16948 | -7/Lower Caves | Entered Zion 16955 | -7/Zion | Learned Factory machine intel 16963 | -7/Zion | System corruption cleaned by Quarantine Array 16984 | -7/Zion | Gained Derelict followers 16991 | -7/Zion | Discovered new exit (range 9) 17055 | -7/Zion | Learned location of Data Miner (-6) 17190 | -7/Zion | Received a hallucinogenic algorithm 17190 | -7/Zion | Ran a hallucination algorithm 17297 | -7/Zion | Identified exit to Proximity Caves 17424 | -7/Zion | Entered Proximity Caves 17424 | -6/Proximity Caves | Accompanied by 4 allies 17732 | -6/Proximity Caves | Spotted B-75 Beast 17779 | -6/Proximity Caves | Discovered exit to Factory (range 10) 17785 | -6/Proximity Caves | Entered Factory 17785 | -6/Factory | Evolved 2 slots: Utility x2 17786 | -6/Factory | Loaded intel: 281 machine locations 18024 | -6/Factory | Fabricated E-15 Imp? 18077 | -6/Factory | Discovered new exit (range 5) 18078 | -6/Factory | Identified exit to Factory 18088 | -6/Factory | Identified exit to Lower Caves 18088 | -6/Factory | Identified exit to Extension 18144 | -6/Factory | Repaired Broken Angular Momentum Engine 18202 | -6/Factory | Fabricated Y-54 Guardian (x2) 18435 | -6/Factory | Build established: Hacker-Scout 18441 | -6/Factory | Unchained authorized (QV-33N) 18469 | -6/Factory | Discovered exit to Factory (range 16) 18502 | -6/Factory | Entered Extension 18512 | -6/Extension | Rescued a captive Derelict 18686 | -6/Extension | Rescued a captive Derelict 18725 | -6/Extension | Rescued a captive Derelict 18727 | -6/Extension | Rescued a captive Derelict 18758 | -6/Extension | Rescued a captive Derelict 18767 | -6/Extension | Rescued a captive Derelict 18767 | -6/Extension | Rescued a captive Derelict 19215 | -6/Extension | Spotted B-75 Beast 19223 | -6/Extension | Allies destroyed B-75 Beast 19238 | -6/Extension | Rescued a captive Derelict 19296 | -6/Extension | Rescued a captive Derelict 19298 | -6/Extension | Rescued a captive Derelict 19378 | -6/Extension | Rescued a captive Derelict 19378 | -6/Extension | Rescued a captive Derelict 19392 | -6/Extension | Rescued A7 19515 | -6/Extension | Discovered exit to Factory (range 10) 19517 | -6/Extension | Discovered new exit (range 6) 19520 | -6/Extension | Identified exit to Cetus 19595 | -6/Extension | Entered Cetus 19595 | -6/Cetus | Accompanied by 18 allies (A7) 19600 | -6/Cetus | Acquired a Cetus Manufacturing Module code from A7 19610 | -6/Cetus | Spotted Cetus Guard 19618 | -6/Cetus | Spotted Cetus Guard 19618 | -6/Cetus | Spotted Cetus Guard 19618 | -6/Cetus | Spotted Cetus Guard 19634 | -6/Cetus | Allies destroyed Cetus Guard 19642 | -6/Cetus | Allies destroyed Cetus Guard 19669 | -6/Cetus | Lost 3 allies 19684 | -6/Cetus | Started Cetus Manufacturing Module 19704 | -6/Cetus | Escorted A7 to Cetus Mainframe 19709 | -6/Cetus | Manufactured an Enhanced Grunt 19734 | -6/Cetus | Manufactured an Enhanced Grunt 19759 | -6/Cetus | Manufactured an Enhanced Grunt 19784 | -6/Cetus | Manufactured an Enhanced Grunt 19809 | -6/Cetus | Manufactured an Enhanced Grunt 19843 | -6/Cetus | Discovered new exit (range 16) 19955 | -6/Cetus | Spotted Cetus Guard 19956 | -6/Cetus | Spotted Cetus Guard 19969 | -6/Cetus | Spotted Cetus Guard 19970 | -6/Cetus | Spotted Cetus Guard 19979 | -6/Cetus | Allies destroyed Cetus Guard 19981 | -6/Cetus | Allies destroyed Cetus Guard 19983 | -6/Cetus | Allies destroyed Cetus Guard 19990 | -6/Cetus | Discovered exit to Factory (range 15) 19994 | -6/Cetus | Met Revision 17 20007 | -6/Cetus | Identified exit to Archives 20015 | -6/Cetus | Build established: Commander-Scout 20156 | -6/Cetus | Entered Archives 20156 | -6/Archives | Accompanied by 18 allies (A7) 20163 | -6/Archives | Received a hacking code to weaken MAIN.C 20194 | -6/Archives | Discovered new exit (range 16) 20199 | -6/Archives | Unable to access archive contents 20211 | -6/Archives | Discovered new exit (range 15) 20220 | -6/Archives | Lost 5 allies 20244 | -6/Archives | Discovered exit to Factory (range 14) 20319 | -6/Archives | Identified exit to Hub_04(d) 20395 | -6/Archives | Entered Hub_04(d) 20395 | -6/Hub_04(d) | Accompanied by 12 allies 20576 | -6/Hub_04(d) | Network Hub disabled 20580 | -6/Hub_04(d) | Spotted Lightning 20580 | -6/Hub_04(d) | Spotted Lightning 20581 | -6/Hub_04(d) | Spotted Lightning 20596 | -6/Hub_04(d) | Spotted Lightning 20596 | -6/Hub_04(d) | Entered Factory 20596 | -5/Factory | Evolved 2 slots: Propulsion x2 20613 | -5/Factory | Lost 6 parts (1p1n3u1w) 20702 | -5/Factory | Repaired Cld. VTOL Module 20773 | -5/Factory | Repaired Cld. VTOL Module 20813 | -5/Factory | Build established: Hacker-Sprinter 20837 | -5/Factory | Repaired Field Propulsion Array 20937 | -5/Factory | Repaired Adv. KE Penetrator 20971 | -5/Factory | Repaired Rocket Launcher+ 21034 | -5/Factory | Repaired Lgt. Antimatter Reactor 21216 | -5/Factory | Repaired Field Propulsion Array 21283 | -5/Factory | Repaired Lgt. Antimatter Reactor 21367 | -5/Factory | Unchained authorized (QV-33N) 21630 | -5/Factory | Sucked down chute 21630 | -5/Factory | Entered Waste 21641 | -5/Waste | Spotted C-40 Crusher 21645 | -5/Waste | EMP discharged 21645 | -5/Waste | System corruption reached 10% 21645 | -5/Waste | Spotted C-40 Crusher 21650 | -5/Waste | Spotted C-40 Crusher 21651 | -5/Waste | Spotted C-40 Crusher 21652 | -5/Waste | Discovered new exit (range 14) 21658 | -5/Waste | Lost 8 parts (1p3n3u1w) 21661 | -5/Waste | Identified exit to Factory 21662 | -5/Waste | Entered Factory 21801 | -5/Factory | Build established: Hacker-Scout 21838 | -5/Factory | Core integrity fell below 50% 21892 | -5/Factory | Fabricated X-62 Marksman? 21918 | -5/Factory | Lost 11 parts (1p7n3u) 21969 | -5/Factory | Discovered new exit (range 33) 22014 | -5/Factory | Identified exit to Upper Caves 22142 | -5/Factory | Repaired Broken Lgt. Quantum Reactor 22198 | -5/Factory | Discovered new exit (range 15) 22206 | -5/Factory | Identified exit to Factory 22253 | -5/Factory | Repaired Biomechanical Wings? 22262 | -5/Factory | Search patrols dispatched 22736 | -5/Factory | Crushed by falling debris 22736 | -5/Factory | Spotted B-75 Beast 22766 | -5/Factory | Entered Upper Caves 22767 | -5/Upper Caves | Lost 3 parts (3u) 22770 | -5/Upper Caves | Core integrity fell below 20% 22848 | -5/Upper Caves | Attracted the attention of an 0b10 checkpoint 22863 | -5/Upper Caves | Learned Factory security intel 22889 | -5/Upper Caves | Attracted the attention of an 0b10 outpost 23064 | -5/Upper Caves | Discovered new exit (range 19) 23086 | -5/Upper Caves | Entered an active Warlord outpost 23087 | -5/Upper Caves | Learned location of 1 exit from Factory 23087 | -5/Upper Caves | Learned Research security intel 23087 | -5/Upper Caves | Learned Armory security intel 23104 | -5/Upper Caves | Encountered a Warlord checkpoint 23105 | -5/Upper Caves | Learned Factory stockpile data 23167 | -5/Upper Caves | Identified exit to Upper Caves 23169 | -5/Upper Caves | Entered another Upper Caves area 23244 | -5/Upper Caves | Learned Extension trap positions 23244 | -5/Upper Caves | Learned Factory emergency access door positions 23244 | -5/Upper Caves | Learned Research stockpile data 23286 | -5/Upper Caves | Entered a destroyed Warlord outpost 23450 | -5/Upper Caves | Discovered new exit (range 9) 23455 | -5/Upper Caves | Identified exit to Warlord 23455 | -5/Upper Caves | Entered Warlord 23465 | -5/Warlord | System corruption cleaned by Quarantine Array 23484 | -5/Warlord | Lost 5 parts (1p2n1u1w) 23578 | -5/Warlord | Visited the Vortex Lab 23580 | -5/Warlord | Found Prototype Energy Gun 23580 | -5/Warlord | Identified Vortex Shotgun 23583 | -5/Warlord | Found Prototype Piercing Weapon 23583 | -5/Warlord | Identified Vortex Lance 23590 | -5/Warlord | Found Vortex Lance 23598 | -5/Warlord | Warlord's base attacked by MAIN.C 23840 | -5/Warlord | Met Warlord 23948 | -5/Warlord | Warlord forces counterattacked 24033 | -5/Warlord | Opened side exit 24114 | -5/Warlord | Discovered new exit (range 16) 24198 | -5/Warlord | Spotted Executioner 24273 | -5/Warlord | Warlord base infiltrated, sounded retreat 24278 | -5/Warlord | Build established: Scavenger-Scout 24292 | -5/Warlord | Lost 3 allies 24352 | -5/Warlord | Spotted Striker 24459 | -5/Warlord | Found Prototype Processor 24462 | -5/Warlord | Found Prototype Device 24462 | -5/Warlord | Identified Exp. Cloaking Device 24508 | -5/Warlord | Found Prototype Processor 24508 | -5/Warlord | Identified Exp. Core Analyzer 24516 | -5/Warlord | Spotted Executioner 24525 | -5/Warlord | Identified Spectral Analyzer 24528 | -5/Warlord | Identified exit to Proximity Caves 24531 | -5/Warlord | Entered Proximity Caves 24548 | -4/Proximity Caves | Lost 10 allies 24624 | -4/Proximity Caves | Destroyed by S-27 Virus with Autogun Last Messages --------------- 24526_ Jacked 7Y-SMJ(K)... >>parse_system Reading system data... New IDs: Exp. Melee Analysis Suite Particle Cleaver 24528_ The unstable cave ceiling collapses. 24528_ EXIT=IDENTIFIED: PROXIMITY CAVES 24529_ The unstable cave ceiling collapses. 24530_ Warlord exits level. 24530_ Enhanced Demolisher exits level. LOCATION=PROXIMITY CAVES GOAL=ESCAPE 24565_ Acquired derelict log, extracted data. Data stored: Armory entrances (x1). 24613_ Dropped Spear+. 24613_ Dropped Imp. Remote Datajack. 24621_ Destroyed VTOL Module. 24622_ Autogun fries itself beyond repair. 24623_ S-27 Virus destroyed. Map ----- +----------------------------------------------------+ | ?????????????????????????????????????????????????? | | ?????????????????????????????????????????????????? | | ?????????????????????????????????????????????????? | | ?????????????????????????????????????????????????? | | ?????????????????????????????????????????????????? | | ?????????????????????????????????????????????????? | | ?????????????????????????????#???????????????????? | | ????????????????????????#??????#?????????????????? | | ???????????????????#???##????????????????????????? | | ??????????#????#??#?#????????????????????????????? | | ???????????????#?#?????##????#????????#??????????? | | ?????????????????#??????????#???????#????????????? | | ???????????#????????????#????????????????????????? | | ???????#???????#?????#????#??????????#???????????? | | ????????#??#?#?##???###????????###???????????????? | | ##?#????### #??# ##??#???????# ##??????????????? | | ?##?#??? ?????# ##?#?#????# ##?????????????? | | ??#?##? ? ???? #????#??? #??????????????? | | ??? ? ?##????# ########? ##??????#??????? | | ????? ? ?#?????# ## ### = ##????????????? | | ??????# ?#????## ## % ####?????????? | | #???### ?###### # ?????????? | | #?### ?## % #?#???????? | | #?#?# ## #??????????? | | ###### #?? ?#??#??????? | | ###### @ #???????????????? | | # ## # ### #????? ? ???????? | | ??## ## #### #??#???? ????????????? | | #### #?####s #???#???????????#????? | | #??# | ?##### ###?#?#??????????????? | | ##### ####?## ####??#??#???? ??????? | | #?### #?##### ###### ???#? ??????? | | ###"## ###### ??????????? | | ## ##### # #?? ???????? | | ###### ##### ### Y #??????????? | | #??####?## ### ## ##? ???????????? | | #?####### ######## #??? ???????????? | | #### ####### #?###?## #??? ???????????? | | ######## ####?#?# ? ? ?#?????????? | | ######## ##??#?### ??#?????????? | | # ####??#? ????????????? | | # #?#?#?## ??? ??????????????? | | ##### ## ##?#####?# ??? ????????????? | | ###### ### ######?###?##??# ##???????????????? | | ###########?# ##??#??#?###?##?#?????????????????? | | ##?#?####??## #??####?####??????????????????????? | | ####?######## ##?#?##??##??????????????????????? | | ###?##?###### ##???##??????????????????????? | | ?####?##?##?# ? #?#??#?#?????????????????????? | | ######??##?## ? ##??##??#???????????????????? | +----------------------------------------------------+ Best States ------------- Heat Dissipation 81 Energy Generation 25 Energy Capacity 300 Matter Stores 300 Matter Capacity 300 Sight Range 16 Robot Scan Range 16 Terrain Scan Range 20 Terrain Scan Density 210 Jamming Range 14 Additional Mass Support 9 Armor Coverage 300 Evasion (%) 74 Targeting Accuracy 5 Melee Accuracy 11 Launcher Accuracy 30 Target Analysis 8 Core Analysis 8 Armor Integrity Analysis 30 Recoil Reduction 4 Offensive Hacking 48 Defensive Hacking 36 Item Schematics ----------------- VTOL Module | -9/Materials | Scanalyzed Med. Storage Unit | -9/Materials | Hacked Imp. Flight Unit | -9/Materials | Scanalyzed Cooling System | -9/Materials | Scanalyzed Hacking Suite | -9/Materials | Scanalyzed Signal Interpreter | -9/Materials | Scanalyzed Plasma Cutter | -9/Materials | Scanalyzed Cld. Ion Engine | -8/Materials | Scanalyzed Transmission Jammer | -8/Materials | Scanalyzed Cesium-ion Thruster | -8/Materials | Scanalyzed Lgt. Deuterium Engine | -8/Materials | Scanalyzed System Shield | -8/Materials | Extracted Reactive Plating | -8/Materials | Extracted Weapon Shielding | -8/Materials | Extracted Mic. Fission Core | -7/Factory | Hacked Gauss Rifle | -7/Factory | Scanalyzed Rocket Launcher | -7/Factory | Scanalyzed Powered Hammer | -7/Factory | Scanalyzed Imp. Datajack | -7/Factory | Scanalyzed Adv. System Shield | -7/Factory | Hacked Adv. Sensor Array | -7/Factory | Hacked Stasis Canceller | -7/Factory | Hacked Cld. VTOL Module | -7/Factory | Scanalyzed Barrage Gun | -7/Zion | Free Slug Cannon | -7/Zion | Free Ripper | -7/Zion | Free Bore Cannon | -7/Zion | Free Force Booster | -7/Zion | Archive Imp. Hardlight Generator | -7/Zion | Archive Imp. Target Analyzer | -7/Zion | Archive Core Analyzer | -7/Zion | Archive Adv. Terrain Scanner | -7/Zion | Archive Imp. Thermal Shield | -7/Zion | Archive Neutrino Core | -7/Zion | Archive Imp. Deuterium Engine | -7/Zion | Archive Imp. Cryofiber Web | -7/Zion | Archive Imp. Heavy Armor Plating | -7/Zion | Archive Coolant Injector | -7/Zion | Archive Gravmag System | -7/Zion | Archive Enh. Optical Array | -7/Zion | Archive HERF Cannon | -7/Zion | Archive Lrn. Terrain Scanner | -6/Extension | Hacked Field Propulsion Array | -6/Extension | Hacked Hyp. Mass Driver | -6/Hub_04(d) | Hacked Mic. Antimatter Reactor | -5/Factory | Hacked Adv. Force Field | -5/Factory | Hacked Impulse Thruster Array | -5/Factory | Hacked Lgt. Quantum Reactor | -5/Factory | Scanalyzed Adv. Drone Bay | -5/Factory | Hacked Nuclear Pulse Array | -5/Factory | Hacked Railgun | -5/Factory | Hacked Impulse Thruster | -5/Factory | Hacked Com. HERF Cannon | -5/Factory | Hacked Robot Schematics ------------------ R-06 Scavenger | -7/Zion | Archive S-27 Virus | -7/Zion | Archive X-62 Marksman | -7/Zion | Archive H-55 Commando | -6/Hub_04(d) | Hacked Fabricated ------------ E-15 Imp | x2 | -6/Factory | Preloaded Y-54 Guardian | x2 | -6/Factory | Preloaded X-62 Marksman | x2 | -5/Factory Repaired ---------- Lgt. Assault Rifle | 18% | -10/Materials Lgt. Armor Plating | 70% | -10/Materials Lgt. Assault Rifle | 67% | -10/Materials Nuclear Core | 16% | -9/Materials Cooling System | 14% | -9/Storage Hvy. Ion Engine | 26% | -9/Storage | Broken Transmission Jammer | 90% | -8/Materials | Broken Hacking Suite | 80% | -8/Materials Hvy. Assault Cannon | 82% | -8/Materials Imp. Flight Unit | 55% | -7/Factory Imp. Flight Unit | 60% | -7/Factory Rocket Launcher | 27% | -7/Factory Imp. Flight Unit | 62% | -7/Factory Imp. Flight Unit | 87% | -7/Factory Imp. Terrain Scanner | 31% | -7/Factory Cld. VTOL Module | 78% | -7/Factory Angular Momentum Engine | 43% | -6/Factory | Broken Cld. VTOL Module | 13% | -5/Factory Cld. VTOL Module | 31% | -5/Factory Field Propulsion Array | 44% | -5/Factory Adv. KE Penetrator | 22% | -5/Factory Rocket Launcher | 17% | -5/Factory Lgt. Antimatter Reactor | 60% | -5/Factory Field Propulsion Array | 74% | -5/Factory Lgt. Antimatter Reactor | 21% | -5/Factory Lgt. Quantum Reactor | 10% | -5/Factory | Broken Biomechanical Wings | 35% | -5/Factory Studied --------- Powered Hammer | -7/Factory | Hacked Rocket Launcher | -7/Factory | Hacked Mic. Nuclear Core | -7/Factory | Hacked Gauss Rifle | -7/Factory | Hacked Imp. Datajack | -7/Factory | Hacked Hvy. Ion Cannon | -7/Factory | Hacked Xenon Bombardment Thruster | -7/Factory | Hacked Angular Momentum Engine | -6/Factory | Hacked Spear | -6/Factory | Hacked Alien Tech Used ----------------- Core Expander Achievements -------------- None Challenges ------------ None Game ------ Seed FissionSpacefoldLegs Manual? 0 Play Time 04:26:18 Cumulative 243.6 hours Start 2025.12.27 @ 16:24:33 End 2025.12.28 @ 00:43:26 Sessions 1 Manual Loads 0 Difficulty Rogue Special Mode None Game No. 322 Rogue 321 Adventurer 1 Explorer 0 Win Type - Total 2 Types 1/0/0/1/0/0/0/0/0/0 Lore% 71 Gallery% 64 Achievement% 55 Wizard Run 0 Options --------- Layout 0 ASCII 0 Keyboard 0 Movement Numpad Keybinds 0 Fullscreen 1 Font 24/Smallcaps Map View 76x50 Zoom Use 0% Tactical HUD 1 Map Filters NONE Filters NONE Steam 1 RUN: bebfb528-c0c1-4e3f-87f2-ef977b1f59b8